Cogmind - Beta 15 @@@ ROGUE MODE // 2025.07.25 @ 22:04:42 Player: P9H Result: Core destroyed Performance ------------- Evolutions (1) 500 Regions Visited (2) 400 Robots Destroyed (9) 45 Value Destroyed (326) 326 Prototype IDs (0) 0 Alien Tech Used (0) 0 Bonus (0) 0 TOTAL SCORE: 1271 Bonus ------- None Cogmind --------- Core Integrity 0/400 Matter 37/300 Energy 70/100 System Corruption 0% Temperature Critical (587) Movement Core (400) Ox7 Location -9/Materials Parts ------- > --- POWER (1) -------- (None) > --- PROPULSION (2) --- (None) > --- UTILITY (3) ------ Large Storage Unit > --- WEAPON (3) ------- Heavy Mace > --- INVENTORY (15) --- Ion Engine Ion Engine Compact Wheel Cryofiber Web Cryofiber Web Improved Utility Shielding Hardened Light Armor Plating EM Pulse Gun Small Laser Heavy Mace Heavy Mace Heavy Mace Peak State ------------ > --- POWER ------------ Ion Engine > --- PROPULSION ------- Light Treads Wheel > --- UTILITY ---------- Large Storage Unit Improved Utility Shielding Hardened Light Armor Plating > --- WEAPON ----------- Small Laser Particle Gun Heavy Assault Rifle > --- INVENTORY -------- Ion Engine Ion Engine Compact Wheel Cryofiber Web Cryofiber Web Improved Utility Shielding Hardened Light Armor Plating EM Pulse Gun Grenade Launcher Heavy Mace Heavy Mace Heavy Mace Heavy Mace [Rating: 16] Favorites ----------- Power Ion Engine Engine Ion Engine Propulsion Wheel Treads Light Treads Wheel Wheel Utility Large Storage Unit Storage Large Storage Unit Protection Improved Utility Shielding Weapon Assault Rifle Energy Gun Small Laser Ballistic Gun Assault Rifle Ballistic Cannon Light Cannon Launcher Grenade Launcher Impact Weapon Heavy Mace Build | -11 -10 -9 ------- Run | Yrd Mat Mat Slots Evolved 2 | . . 2 Power . | . . . Propulsion . | . . . Utility 1 | . . 1 Weapon 1 | . . 1 Parts Attached 18 | 6 3 9 Power 1 | . 1 . Engine 1 | . 1 . Core . | . . . Reactor . | . . . Propulsion 4 | 3 . 1 Treads 1 | 1 . . Leg . | . . . Wheel 3 | 2 . 1 Hover . | . . . Flight . | . . . Utility 5 | 1 1 3 Device . | . . . Storage 2 | 1 1 . Processor . | . . . Hackware . | . . . Protection 3 | . . 3 Artifact . | . . . Weapon 8 | 2 1 5 Energy Gun 3 | 1 . 2 Energy Cannon . | . . . Ballistic Gun 2 | 1 . 1 Ballistic Cannon 1 | . 1 . Launcher 1 | . . 1 Special Weapon . | . . . Impact Weapon 1 | . . 1 Slashing Weapon . | . . . Piercing Weapon . | . . . Special Melee Weapon . | . . . Unidentified Prototypes . | . . . Parts Lost 11 | . . 11 Power 1 | . . 1 Propulsion 3 | . . 3 Utility 2 | . . 2 Weapon 5 | . . 5 Highest Loss Streak 10 | . . 10 To Critical Strikes . | . . . Average Backups 8 | 2 7 12 Power 1 | . 2 2 Propulsion . | 1 1 . Utility 1 | . . 2 Weapon 4 | . 3 7 Tool/Special . | . . . Unused Backups 11 | . . 11 Power 2 | . . 2 Propulsion . | . . . Utility 5 | . . 5 Weapon 4 | . . 4 Tool/Special . | . . . Average Slot Usage (%) 77 | . 72 82 Engine 6 | . 1 10 Treads 3 | . . 5 Wheel 20 | . 28 12 Storage 12 | . 14 11 Protection 6 | . . 13 Energy Gun 5 | . 2 8 Ballistic Gun 11 | . 14 9 Ballistic Cannon 11 | . 11 10 Peak Build Rating 16 | 5 6 16 Average Rating 7 | 3 5 10 On Entrance 3 | . 5 6 Naked Turns . | . . . Heaviest Build 38 | 8 30 38 Greatest Support 26 | 26 26 26 Greatest Overweight (x) 3 | . 1 3 Average Overweight (x) . | . . 2 Largest Inventory Capacity 15 | 8 15 15 Average Capacity 12 | 6 10 15 Most Carried 15 | 5 9 15 Average Carried 9 | 2 7 12 Final Capacity 15 | 8 15 15 Final Carried 12 | 4 8 12 Class Distribution -------------------- 74% | Mutant 25% | Tank Dominant Class ---------------- Mutant | -10/Materials Tank | -9/Materials Resources | -11 -10 -9 ----------- Run | Yrd Mat Mat Matter Collected 290 | 174 58 58 Remotely . | . . . Salvage Created 342 | . 43 299 Parts 17 | . 3 14 Haulers Intercepted . | . . . Recyclers Shooed 1 | . . 1 Parts Field Recycled . | . . . Retrieved Matter . | . . . Parts Self-Destructed . | . . . Prevented . | . . . Kills | -11 -10 -9 ------- Run | Yrd Mat Mat Combat Hostiles Destroyed 8 | . 2 6 Guns 2 | . . 2 Cannons 4 | . 2 2 AOE 2 | . . 2 Classes Destroyed 3 | . 1 2 Recycler 1 | . . 1 Grunt 6 | . 2 4 Sentry 2 | . . 2 Best Kill Streak 4 | . 1 4 Combat Bots Only 3 | . 1 3 Max Kills in Single Turn 2 | . 1 2 Gunslinging . | . . . Exploded 1 | . . 1 Melee . | . . . Uniques/NPCs Destroyed . | . . . Combat | -11 -10 -9 -------- Run | Yrd Mat Mat Hostile Shots Fired 103 | . 9 94 Missed 13 | . 3 10 Hits 90 | . 6 84 Projectile 90 | . 6 84 Damage Taken 1512 | . 81 1431 Core 419 | . 12 407 Absorbed by Shields . | . . . Redirected to Shielding 45 | . . 45 Core Remaining (%) 97 | 100 95 . Volleys Fired 33 | . 11 22 Largest 3 | . 2 3 Hottest 128 | . 50 128 Shots Fired 66 | . 22 44 Gun 36 | . 11 25 Cannon 28 | . 11 17 Launcher 2 | . . 2 Special . | . . . Kinetic 50 | . 22 28 Thermal 14 | . . 14 Explosive 2 | . . 2 Electromagnetic . | . . . Robot Hit Streak 16 | . 16 8 Robot Miss Streak 4 | . 4 3 Penetration Max . | . . . Secondary Targets . | . . . Shots Hit Robots 51 | . 17 34 Core Hits 23 | . 5 18 Critical Kills . | . . . Critical Parts Destroyed . | . . . Critical Strikes 1 | . 1 . Blast 1 | . 1 . Melee Attacks . | . . . Impact . | . . . Slashing . | . . . Piercing . | . . . Sneak Attacks . | . . . Combat Hostiles . | . . . Follow-up Attacks . | . . . Damage Inflicted 946 | . 253 693 Guns 384 | . 104 280 Cannons 378 | . 149 229 Explosions 184 | . . 184 Melee . | . . . Ramming . | . . . Kinetic 626 | . 253 373 Thermal 136 | . . 136 Explosive 184 | . . 184 Electromagnetic . | . . . Impact . | . . . Slashing . | . . . Piercing . | . . . Highest Corruption . | . . . Average Corruption . | . . . Corruption Purged . | . . . Corruption Blocked . | . . . Overload Shots . | . . . Overflow Damage 11 | . . 11 Projectiles . | . . . Explosions 11 | . . 11 Melee . | . . . Knockbacks 9 | . 5 4 Impact . | . . . Kinetic 9 | . 5 4 Secondary . | . . . Self-Inflicted Damage 79 | . . 79 Shots 2 | . . 2 Rammed . | . . . Targets Rammed . | . . . Kicked . | . . . Crushed . | . . . Highest Temperature 587 | . . 587 Average Temperature 279 | . . 279 Received Heat Transfer 624 | . 45 579 Effects 10 | . . 10 Shutdowns 1 | . . 1 Energy Bleed 2 | . . 2 Short Circuit 1 | . . 1 Damage (minor) 2 | . . 2 Damage (major) 1 | . . 1 Damage (core) 3 | . . 3 Siege Activations . | . . . Martial Activations . | . . . Shielding Activations . | . . . Robots Disrupted . | . . . Combat Hostiles . | . . . Robots Corrupted . | . . . Combat Hostiles . | . . . Parts Fried . | . . . Impact Corruptions . | . . . Robots Melted . | . . . Combat Hostiles . | . . . Parts Melted . | . . . Heat Transferred 311 | . . 311 Parts Sabotaged . | . . . Parts Stolen . | . . . Parts Stripped . | . . . Power Chain Reactions . | . . . Alert | -11 -10 -9 ------- Run | Yrd Mat Mat Maximum Alert Level . | . . . Low Security (%) 100 | 100 100 100 Level 1 . | . . . Level 2 . | . . . Level 3 . | . . . Level 4 . | . . . Level 5 . | . . . High Security . | . . . Max Security . | . . . Peak Influence 52 | . 45 52 Initial . | . . . Average 12 | . 14 13 Influence Increases 231 | . 65 166 Destroy 0b10 Robot/C 160 | . 40 120 Destroy 0b10 Robot/NC 5 | . . 5 Destroy Leader 40 | . 10 30 Destroy Structure 11 | . . 11 Lose Combat Pursuer 15 | . 15 . Influence Decreases 186 | . 65 121 Time Decay 136 | . 65 71 Lost Part 50 | . . 50 Squads Dispatched . | . . . Investigation . | . . . Extermination . | . . . Reinforcement . | . . . Assault . | . . . Garrison . | . . . Intercept . | . . . Searches Triggered . | . . . Construction Impeded . | . . . Haulers Reinforced . | . . . Active Scanning Responses . | . . . Cargo Convoy Interrupts . | . . . Stealth | -11 -10 -9 --------- Run | Yrd Mat Mat Distress Signals 1 | . 1 . Communications Jammed . | . . . Distress Signals . | . . . Times Spotted 16 | . 9 7 Peak Tracking Total 5 | . 4 5 Tactical Retreats 1 | . 1 . Traps | -11 -10 -9 ------- Run | Yrd Mat Mat Traps Triggered . | . . . Indirectly . | . . . Trap Hack Attempts . | . . . Triggered . | . . . Disarmed . | . . . Reprogrammed . | . . . Reused . | . . . Traps Extracted . | . . . Installed . | . . . Triggered . | . . . Machines | -11 -10 -9 ---------- Run | Yrd Mat Mat Machines Disabled . | . . . Max in Single Turn . | . . . Machines Repaired . | . . . Machines Dismantled . | . . . Machines Sabotaged . | . . . Overloaded Fab Kills . | . . . Hacking | -11 -10 -9 --------- Run | Yrd Mat Mat Machines Accessed . | . . . Terminals . | . . . Fabricators . | . . . Repair Stations . | . . . Recycling Units . | . . . Scanalyzers . | . . . Garrison Access . | . . . Total Hacks . | . . . Successful . | . . . Failed . | . . . Catastrophic . | . . . Database Lockouts . | . . . Manual . | . . . Terminals . | . . . Fabricators . | . . . Repair Stations . | . . . Recycling Units . | . . . Scanalyzers . | . . . Garrison Access . | . . . Terminal Hacks . | . . . Fabricator Hacks . | . . . Repair Station Hacks . | . . . Recycling Unit Hacks . | . . . Scanalyzer . | . . . Garrison Access Hacks . | . . . Unauthorized Hacks . | . . . Terminals . | . . . Fabricators . | . . . Repair Stations . | . . . Recycling Units . | . . . Scanalyzers . | . . . Garrison Access . | . . . Data Cores Recovered . | . . . Used . | . . . Hacking Detections . | . . . Full Trace Events . | . . . Feedback Events . | . . . Feedback Blocked . | . . . Robot Schematics Acquired . | . . . Robots Built . | . . . Authchips . | . . . Time . | . . . Total Robot Build Rating . | . . . Part Schematics Acquired . | . . . Parts Built . | . . . Authchips . | . . . Time . | . . . Total Part Build Rating . | . . . Parts Repaired . | . . . Time . | . . . Parts Recycled . | . . . Recycled Matter . | . . . Retrieved Matter . | . . . Retrieved Components . | . . . Parts Scanalyzed . | . . . Part Schematics Acquired . | . . . Parts Damaged . | . . . Bothacking | -11 -10 -9 ------------ Run | Yrd Mat Mat Used RIF Installer . | . . . Robots Hacked . | . . . Non-combat . | . . . Combat . | . . . Robot Hacks Applied . | . . . Relay Couplers Released . | . . . Fabnet Peak Effective % . | . . . Robots Rewired . | . . . Allies Hacked . | . . . Hacks Repelled . | . . . Allies | -11 -10 -9 -------- Run | Yrd Mat Mat Total Allies . | . . . Largest Group . | . . . Highest-Rated Group . | . . . Highest-Rated Ally . | . . . Total Orders . | . . . Ally Attacks . | . . . Total Damage . | . . . Kills . | . . . Allies Corrupted . | . . . Allies Melted . | . . . Intel | -11 -10 -9 ------- Run | Yrd Mat Mat Active Infowar (turns) . | . . . Robot Analysis Total . | . . . Derelict Logs Recovered . | . . . Drone Launches . | . . . Drone Recoveries . | . . . Exploration | -11 -10 -9 ------------- Run | Yrd Mat Mat Turns Passed 584 | 59 253 272 Spaces Moved 374 | 44 202 128 Core 15 | 15 . . Treads 1 | 1 . . Legs . | . . . Wheels 358 | 28 202 128 Hover . | . . . Flight . | . . . Fastest Speed 50 | 50 90 105 Average Speed 100 | 77 92 121 Slowest Speed 160 | 160 105 130 Overloaded Moves . | . . . Propulsion Burnouts . | . . . Robots Hopped . | . . . Potential Cave-ins . | . . . Cave-ins Triggered . | . . . Exploration Rate (%) 15 | 5 28 14 Regions Visited 2 Branch Regions . Pre-discovered Areas . | . . . Known Exits Taken . | . . . Unknown Exits Taken 2 | 1 1 . Scrap Searched . | . . . Spaces Dug . | . . . Terrain Destroyed 8 | . . 8 Melee . | . . . Projectile . | . . . AOE 8 | . . 8 Terrain Rammed . | . . . Walls Destroyed . | . . . Machines Disabled . | . . . Actions | -11 -10 -9 --------- Run | Yrd Mat Mat Total 518 | 68 246 204 Wait 59 | 8 23 28 Move 372 | 43 201 128 Hop . | . . . Pick Up 27 | 9 6 12 Fast Attach 1 | . . 1 Attach 14 | 6 2 6 Detach 1 | 1 . . Swap 6 | 1 2 3 Drop 5 | . 1 4 Fire 33 | . 11 22 Melee . | . . . Ram . | . . . Kick . | . . . Crush . | . . . Escape Stasis . | . . . Rewire . | . . . Trap . | . . . Miscellaneous . | . . . Route ------- -11/Scrapyard -10/Materials -9/Materials History --------- Turn | Location | Event 10 | -11/Scrapyard | Discovered new exit (range 16) 60 | -11/Scrapyard | Entered Materials 258 | -10/Materials | Discovered new exit (range 15) 306 | -10/Materials | Build established: Mutant 313 | -10/Materials | Entered another Materials area 313 | -9/Materials | Evolved 2 slots: Utility x1, Weapon x1 581 | -9/Materials | Core integrity fell below 50% 586 | -9/Materials | Core destroyed Last Messages --------------- 00579_ Overheating: Imp. Utility Shielding damaged (-52). 00579_ Hvy. Assault Rifle destroyed. 00580_ R-06 Scavenger collects Particle Gun. 00581_ Overheating: Core damaged (-64). 00582_ Overheating: Imp. Utility Shielding damaged (-3). 00582_ K-01 Serf collects debris. 00582_ R-06 Scavenger destroyed. 00582_ G-34 Mercenary destroyed. 00583_ Overheating: Core damaged (-60). 00585_ Imp. Utility Shielding destroyed. 00585_ K-01 Serf collects debris. 00585_ G-34 Mercenary destroyed. 00585_ Grenade Launcher destroyed. 00585_ Destroyed Grenade Launcher. 00585_ Particle Gun destroyed. 00585_ Destroyed Particle Gun. 00585_ K-01 Serf collects debris. 00586_ Overheating: Core damaged (-68). Map ----- +----------------------------------------------------+ | ?????????????????????????????????????????????????? | | ?????????????????????????????????????????????????? | | ?????????????????????????????????????????????????? | | ?????????????????????????????????????????????????? | | ?????????????????????????????????????????????????? | | ?????????????????????????????????????????????????? | | ???? ????????????????????????????????????????? | | ???? ????????????????????????????????????????? | | ???? ????????????????????????????????????????? | | ???? ????????????????????????????????????????? | | ???? ????????????????????????????????????????? | | ????# #????????????????????????????????????????? | | ????# #????????????????????????????????????????? | | ????# #????????????????????????????????????????? | | ????# #?????#??????????????????????????????????? | | ###?# #?????# ?????????????????????????????????? | | #?# #?????# ?????????????????#??????????????? | | #?# #?????# ??????????????? #??????????????? | | #?# #?????# ##############+#???????????????? | | #?# #?????? ????????????????? | | #?# #???????? ?????????????????? | | #?# #?????????? ???????????????????? | | #?# #?????#######+# [ #######??????????????? | | #?# #?????# =% k #??????????????? | | ### ##????# !! """%%*%[ ???????????????? | | +### #????# = "Y" @* #????????????????????? | | ###### = ! ???????????????? | | k a rg # #??????????????? | | ###### """r# %#?? #??????????????? | | +### #????# """ # % #???? #??????????????? | | ## ###??# """ + #????????????????????? | | ## #??########### #????????????????????? | | !##! !! #????????????# #????????????????????? | | ##! #????????????# #????????????????????? | | #########????????????? +????????????????????? | | =[##???????????????????? #????????????????????? | | = #???????????????????? m #????????????????????? | | ##????????????????????#/##????????????????????? | | #?????????????????????? ??????????????????????? | | ####?????????????????????? ??????????????????????? | | ?????????????????????????? ??????????????????????? | | ?????????????????????????????????????????????????? | | ?????????????????????????????????????????????????? | | ?????????????????????????????????????????????????? | | ?????????????????????????????????????????????????? | | ?????????????????????????????????????????????????? | | ?????????????????????????????????????????????????? | | ?????????????????????????????????????????????????? | | ?????????????????????????????????????????????????? | | ?????????????????????????????????????????????????? | +----------------------------------------------------+ Best States ------------- Heat Dissipation 28 Energy Generation 10 Energy Capacity 250 Matter Stores 204 Matter Capacity 300 Sight Range 16 Terrain Scan Density 10 Armor Coverage 150 Utility Shielding 66 Evasion (%) 50 Recoil Reduction 1 Item Schematics ----------------- None Robot Schematics ------------------ None Fabricated ------------ Nothing Repaired ---------- Nothing Alien Tech Used ----------------- None Achievements -------------- None Challenges ------------ None Game ------ Seed AngularColdFocus Manual? 0 Play Time 00:08:18 Cumulative 46.4 hours Start 2025.07.25 @ 21:58:12 End 2025.07.25 @ 22:04:42 Sessions 1 Manual Loads 0 Difficulty Rogue Special Mode None Game No. 94 Rogue 94 Adventurer 0 Explorer 0 Win Type - Total 0 Types 0/0/0/0/0/0/0/0/0/0 Lore% 8 Gallery% 29 Achievement% 25 Wizard Run 0 Options --------- Layout 1 ASCII 0 Keyboard 0 Movement Mouse Keybinds 0 Fullscreen 2 Font 32/SmallcapsGlow Map View 50x35 Zoom Use 0% Tactical HUD 1 Map Filters NONE Filters NONE Steam 1 RUN: e30c68ba-36f4-4618-b720-2d8cec07f704